Cogmind - Beta 10.2 @@@ ROGUE MODE // 2021.02.03 @ 22:26:04 Player: aperiodic Result: Destroyed by DAS Turret with DAS Cannon Performance ------------- Evolutions (0) 0 Regions Visited (3) 600 Robots Destroyed (20) 100 Value Destroyed (382) 382 Prototype IDs (28) 560 Alien Tech Used (0) 0 Bonus (300) 300 TOTAL SCORE: 1942 Bonus ------- Aligned with FarCom 300 Cogmind --------- Core Integrity 0/250 Matter 294/300 Energy 240/240 System Corruption 2% Temperature Cool (0) Movement Walking (120) Location -10/Exiles Parts ------- > --- POWER (1) -------- Nuclear Core > --- PROPULSION (2) --- Aluminum Leg Aluminum Leg > --- UTILITY (2) ------ Light Armor Plating > --- WEAPON (2) ------- AWS/Gauss > --- INVENTORY (4) ---- Carbon-fiber Leg Light Assault Rifle Light Assault Rifle 8R-AWN's Boregun Peak State ------------ > --- POWER ------------ Nuclear Core > --- PROPULSION ------- Aluminum Leg Aluminum Leg > --- UTILITY ---------- Light Armor Plating Thief Drone Bay > --- WEAPON ----------- AWS/Gauss > --- INVENTORY -------- Carbon-fiber Leg Light Assault Rifle Light Assault Rifle 8R-AWN's Boregun [Rating: 30] Favorites ----------- Power Nuclear Core Engine Ion Engine Power Core Nuclear Core Propulsion Wheel Treads Light Treads Leg Aluminum Leg Wheel Wheel Utility High-capacity Storage Unit Device Thief Drone Bay Storage High-capacity Storage Unit Protection Light Armor Plating Weapon Light Assault Rifle Energy Gun EM Pulse Gun Ballistic Gun Light Assault Rifle Launcher Missile Launcher Special Weapon Mining Laser Build | -11 -10 -10 -10 ------- Run | Scr Mat Min Exi Slots Evolved . | . . . . Power . | . . . . Propulsion . | . . . . Utility . | . . . . Weapon . | . . . . Parts Attached 47 | 7 7 21 12 Power 3 | 1 . 2 . Engine 2 | 1 . 1 . Core 1 | . . 1 . Reactor . | . . . . Propulsion 17 | 2 5 8 2 Treads 6 | . 2 4 . Leg 2 | . . . 2 Wheel 9 | 2 3 4 . Hover . | . . . . Flight . | . . . . Utility 11 | 2 2 3 4 Device 2 | . . 1 1 Storage 8 | 2 2 2 2 Processor . | . . . . Hackware . | . . . . Protection 1 | . . . 1 Artifact . | . . . . Weapon 16 | 2 . 8 6 Energy Gun 2 | 1 . 1 . Energy Cannon . | . . . . Ballistic Gun 9 | 1 . 4 4 Ballistic Cannon . | . . . . Launcher 3 | . . 1 2 Special Weapon 2 | . . 2 . Impact Weapon . | . . . . Slashing Weapon . | . . . . Piercing Weapon . | . . . . Special Melee Weapon . | . . . . Unidentified Prototypes 2 | . . 1 1 Parts Lost 4 | . . 3 1 Power 1 | . . 1 . Propulsion 1 | . . 1 . Utility . | . . . . Weapon 2 | . . 1 1 Highest Loss Streak 1 | . . 1 1 Average Slot Usage (%) 89 | . 90 90 87 Engine 6 | . 14 8 . Core 7 | . . 5 14 Treads 6 | . . 17 . Leg 4 | . . . 11 Wheel 16 | . 27 9 16 Storage 16 | . 19 19 12 Protection 1 | . . . 3 Energy Gun 8 | . 14 4 10 Ballistic Gun 17 | . 14 22 13 Naked Turns . | . . . . Heaviest Build 90 | 17 41 50 90 Greatest Support 40 | 20 20 40 20 Greatest Overweight (x) 4 | . 2 2 4 Average Overweight (x) 1 | . 1 1 3 Largest Inventory Capacity 24 | 8 14 16 24 Average Capacity 14 | 6 10 13 17 Most Carried 24 | 5 10 16 24 Average Carried 12 | 3 7 12 14 Final Capacity 16 | 8 12 16 4 Final Carried 16 | 5 10 16 4 Class Distribution -------------------- 75% | Mutant 24% | Hauler-Mutant Dominant Class ---------------- Mutant | -10/Materials Mutant | -10/Mines Hauler-Mutant | -10/Exiles Resources | -11 -10 -10 -10 ----------- Run | Scr Mat Min Exi Matter Collected 1168 | 297 75 581 215 Remotely . | . . . . Salvage Created 611 | 136 102 367 6 Parts 40 | 7 7 26 . Haulers Intercepted . | . . . . Recyclers Shooed . | . . . . Parts Field Recycled . | . . . . Retrieved Matter . | . . . . Parts Self-Destructed . | . . . . Prevented . | . . . . Kills | -11 -10 -10 -10 ------- Run | Scr Mat Min Exi Combat Hostiles Destroyed 19 | . 3 11 5 Guns 14 | . 3 9 2 AOE 5 | . . 2 3 Classes Destroyed 7 | 2 3 2 . Tunneler 3 | 2 . 1 . Recycler 2 | 1 . 1 . Operator 1 | . 1 . . Watcher 2 | . 2 . . Swarmer 5 | . 3 2 . Grunt 7 | . . 7 . Assembled 7 | . . 2 5 Best Kill Streak 4 | 1 3 3 4 Combat Bots Only 4 | . 3 3 4 Max Kills in Single Turn 2 | 1 1 2 2 Gunslinging . | . . . . Exploded 2 | . . 2 2 Melee . | . . . . Uniques/NPCs Destroyed . | . . . . Combat | -11 -10 -10 -10 -------- Run | Scr Mat Min Exi Damage Taken 1152 | . 57 643 452 Core 269 | . . 64 205 Absorbed by Shields . | . . . . Core Remaining (%) 100 | 100 . . . Volleys Fired 79 | 9 10 48 12 Largest 2 | 2 2 2 1 Hottest 120 | 70 70 120 36 Shots Fired 144 | 18 20 85 21 Gun 127 | 18 20 75 14 Cannon . | . . . . Launcher 8 | . . 1 7 Special 9 | . . 9 . Kinetic 99 | 9 10 66 14 Thermal 37 | 9 10 18 . Explosive 8 | . . 1 7 Electromagnetic . | . . . . Robot Hit Streak 23 | 3 14 23 7 Robot Miss Streak 4 | 3 4 2 2 Penetration Max . | . . . . Secondary Targets 3 | . 2 1 . Max Gunslinging Chain 1 | . 1 1 . Autonomous 9 | . . . 9 Shots Hit Robots 101 | 9 14 67 11 Core Hits 50 | 4 7 27 12 Critical Hits 2 | . . 2 . Critical Kills 2 | . . 2 . Critical Parts Destroyed . | . . . . Melee Attacks . | . . . . Impact . | . . . . Slashing . | . . . . Piercing . | . . . . Sneak Attacks . | . . . . Combat Hostiles . | . . . . Follow-up Attacks . | . . . . Damage Inflicted 1684 | 124 173 772 615 Guns 1095 | 124 173 582 216 Cannons . | . . . . Explosions 493 | . . 94 399 Melee . | . . . . Ramming . | . . . . Kinetic 797 | 37 61 483 216 Thermal 394 | 87 112 195 . Explosive 493 | . . 94 399 Electromagnetic . | . . . . Impact . | . . . . Slashing . | . . . . Piercing . | . . . . Highest Corruption 2 | . 2 2 2 Average Corruption 2 | . 2 2 2 Corruption Purged . | . . . . Effects 22 | . 4 9 9 Message Errors 11 | . 3 5 3 Heat Flow Errors 1 | . . . 1 Energy Discharges 5 | . 1 . 4 Data Loss (minor) 5 | . . 4 1 Overload Shots . | . . . . Overflow Damage 2 | . . . 2 Projectiles . | . . . . Explosions 2 | . . . 2 Melee . | . . . . Knockbacks . | . . . . Impact . | . . . . Kinetic . | . . . . Secondary . | . . . . Self-Inflicted Damage 25 | . . . 25 Shots 1 | . . . 1 Rammed . | . . . . Targets Rammed . | . . . . Kicked . | . . . . Crushed . | . . . . Highest Temperature 204 | 45 36 204 106 Average Temperature 41 | 16 12 59 19 Received Heat Transfer 249 | . . 249 . Siege Activations . | . . . . Robots Corrupted . | . . . . Combat Hostiles . | . . . . Parts Fried . | . . . . Impact Corruptions . | . . . . Robots Melted . | . . . . Combat Hostiles . | . . . . Parts Melted 4 | 1 2 1 . Heat Transferred 1088 | 259 333 496 . Parts Sabotaged . | . . . . Parts Stolen . | . . . . Parts Stripped . | . . . . Power Chain Reactions . | . . . . Missiles Intercepted . | . . . . Alert | -11 -10 -10 -10 ------- Run | Scr Mat Min Exi Peak Influence 193 | 15 193 155 . Initial 9 | . 9 . . Average 46 | 6 69 36 . Maximum Alert Level . | . . . . Low Security (%) 100 | 100 100 100 . Level 1 . | . . . . Level 2 . | . . . . Level 3 . | . . . . Level 4 . | . . . . Level 5 . | . . . . High Security . | . . . . Max Security . | . . . . Squads Dispatched 1 | . . 1 . Investigation 1 | . . 1 . Extermination . | . . . . Reinforcement . | . . . . Assault . | . . . . Garrison . | . . . . Intercept . | . . . . Construction Impeded . | . . . . Haulers Reinforced . | . . . . Stealth | -11 -10 -10 -10 --------- Run | Scr Mat Min Exi Distress Signals . | . . . . Communications Jammed . | . . . . Distress Signals . | . . . . Times Spotted 43 | . 8 14 21 Peak Tracking Total 9 | . 3 3 9 Tactical Retreats 5 | . . 2 3 Traps | -11 -10 -10 -10 ------- Run | Scr Mat Min Exi Traps Triggered 2 | . 2 . . Indirectly . | . . . . Trap Hack Attempts . | . . . . Triggered . | . . . . Disarmed . | . . . . Reprogrammed . | . . . . Reused . | . . . . Traps Extracted . | . . . . Installed . | . . . . Triggered . | . . . . Exploded 3 | . . . 3 Machines | -11 -10 -10 -10 ---------- Run | Scr Mat Min Exi Machines Disabled 6 | . . . 6 Max in Single Turn 1 | . . . 1 Machines Sabotaged . | . . . . Garrisons Compromised . | . . . . Overloaded Fab Kills . | . . . . Fab Network Shutdowns . | . . . . Hacking | -11 -10 -10 -10 --------- Run | Scr Mat Min Exi Machines Accessed 11 | . 7 2 2 Terminals 7 | . 7 . . Fabricators . | . . . . Repair Stations . | . . . . Recycling Units . | . . . . Scanalyzers . | . . . . Garrison Access . | . . . . Total Hacks 23 | . 19 2 2 Successful 15 | . 11 2 2 Failed 8 | . 8 . . Catastrophic . | . . . . Database Lockouts . | . . . . Manual 11 | . 10 . 1 Terminals 19 | . 19 . . Fabricators . | . . . . Repair Stations . | . . . . Recycling Units . | . . . . Scanalyzers . | . . . . Garrison Access . | . . . . Terminal Hacks 10 | . 6 2 2 Record 1 | . . . 1 Robot Analysis 1 | . 1 . . Prototype ID Bank 2 | . 2 . . Open Door 2 | . . 2 . Locate Traps 1 | . 1 . . Hauler Manifests 1 | . 1 . . Zone Layout 1 | . 1 . . EX-Prototype ID Bank 1 | . . . 1 Fabricator Hacks . | . . . . Repair Station Hacks . | . . . . Recycling Unit Hacks . | . . . . Scanalyzer . | . . . . Garrison Access Hacks . | . . . . Unauthorized Hacks 5 | . 5 . . Terminals 5 | . 5 . . Track 4 | . 4 . . Operators 1 | . 1 . . Fabricators . | . . . . Repair Stations . | . . . . Recycling Units . | . . . . Scanalyzers . | . . . . Garrison Access . | . . . . Data Cores Recovered 1 | . 1 . . Used 1 | . 1 . . Hacking Detections 7 | . 7 . . Full Trace Events . | . . . . Feedback Events . | . . . . Feedback Blocked . | . . . . Robot Schematics Acquired . | . . . . Robots Built . | . . . . Matter . | . . . . Time . | . . . . Total Robot Build Rating . | . . . . Part Schematics Acquired . | . . . . Parts Built . | . . . . Matter . | . . . . Time . | . . . . Total Part Build Rating . | . . . . Parts Repaired . | . . . . Time . | . . . . Parts Recycled . | . . . . Recycled Matter . | . . . . Retrieved Matter . | . . . . Retrieved Components . | . . . . Parts Scanalyzed . | . . . . Part Schematics Acquired . | . . . . Parts Damaged . | . . . . Bothacking | -11 -10 -10 -10 ------------ Run | Scr Mat Min Exi Used RIF Installer . | . . . . Robots Hacked . | . . . . Non-combat . | . . . . Combat . | . . . . Robot Hacks Applied . | . . . . Relay Couplers Released . | . . . . Robots Rewired . | . . . . Allies Hacked . | . . . . Hacks Repelled . | . . . . Allies | -11 -10 -10 -10 -------- Run | Scr Mat Min Exi Total Allies . | . . . . Largest Group . | . . . . Highest-Rated Group . | . . . . Highest-Rated Ally . | . . . . Total Orders 1 | . . . 1 RETURN 1 | . . . 1 Ally Attacks 8 | . . . 8 Total Damage 35 | . . . 35 Kills . | . . . . Allies Corrupted . | . . . . Allies Melted . | . . . . Intel | -11 -10 -10 -10 ------- Run | Scr Mat Min Exi Robot Analysis Total 1 | . 1 . . Derelict Logs Recovered 1 | . . 1 . Drone Launches 8 | . . . 8 Drone Recoveries 6 | . . . 6 Exploration | -11 -10 -10 -10 ------------- Run | Scr Mat Min Exi Turns Passed 2972 | 88 602 1083 1199 Spaces Moved 1906 | 54 413 634 805 Core 11 | 11 . . . Treads 324 | . . 324 . Legs 205 | . . . 205 Wheels 1366 | 43 413 310 600 Hover . | . . . . Flight . | . . . . Fastest Speed 50 | 50 80 90 80 Average Speed 121 | 73 92 135 127 Slowest Speed 240 | 80 100 200 240 Overloaded Moves . | . . . . Propulsion Burnouts . | . . . . Robots Hopped . | . . . . Cave-ins Triggered . | . . . . Exploration Rate (%) 59 | 4 67 98 70 Regions Visited 3 Branch Regions 2 Pre-discovered Areas 2 | . . 1 1 Known Exits Taken . | . . . . Unknown Exits Taken 3 | 1 1 1 . Scrap Searched 2 | . . 2 . Spaces Dug . | . . . . Terrain Destroyed 39 | . . 13 26 Melee . | . . . . Projectile 4 | . . 2 2 AOE 35 | . . 11 24 Terrain Rammed . | . . . . Walls Destroyed . | . . . . Machines Disabled . | . . . . Actions | -11 -10 -10 -10 --------- Run | Scr Mat Min Exi Total 2431 | 81 612 764 974 Wait 300 | 4 174 37 85 Move 1903 | 53 412 633 805 Hop . | . . . . Pick Up 62 | 8 7 16 31 Fast Attach 12 | 4 . 2 6 Attach 11 | 3 1 3 4 Detach 1 | . . . 1 Swap 24 | . 6 16 2 Drop 39 | . 2 9 28 Fire 79 | 9 10 48 12 Melee . | . . . . Ram . | . . . . Kick . | . . . . Crush . | . . . . Escape Stasis . | . . . . Rewire . | . . . . Trap . | . . . . Miscellaneous . | . . . . Route ------- -11/Scrapyard -10/Materials (discovered 3 exits: [*Mat] / *Min x2) -10/Mines (discovered 3 exits: [*Mat x2] / *Exi) -10/Exiles (discovered 2 exits: [*Min x2]) History --------- Turn | Location | Event 7 | -11/Scrapyard | Discovered new exit (range 15) 89 | -11/Scrapyard | Entered Materials 321 | -10/Materials | Build established: Mutant 336 | -10/Materials | Discovered new exit (range 19) 360 | -10/Materials | Discovered new exit (range 16) 485 | -10/Materials | Discovered new exit (range 4) 691 | -10/Materials | Entered Mines 697 | -10/Mines | Met a Derelict bent on vengeance 944 | -10/Mines | Excavation squad dispatched 944 | -10/Mines | A large section of the Mines collapsed 1122 | -10/Mines | Discovered new exit (range 11) 1318 | -10/Mines | Learned location of Zion (-6) 1327 | -10/Mines | Met a Derelict shopkeep closing up shop 1468 | -10/Mines | Discovered new exit (range 5) 1534 | -10/Mines | Found the Drone Emporium 1543 | -10/Mines | Found Prototype Device 1545 | -10/Mines | Identified Thief Drone Bay 1744 | -10/Mines | Deemed a non-threat by the Exiles lab entrance 1744 | -10/Mines | Discovered new exit (range 5) 1774 | -10/Mines | Entered Exiles 1787 | -10/Exiles | Discovered new exit (range 15) 1799 | -10/Exiles | Met 8R-AWN 1813 | -10/Exiles | Met EX-HEX 1868 | -10/Exiles | Met EX-DEC 2044 | -10/Exiles | Met EX-BIN 2060 | -10/Exiles | Aligned with FarCom system 2062 | -10/Exiles | Given EX-Vault access code 2092 | -10/Exiles | Opened EX-Vault 2101 | -10/Exiles | Found AWS/Gauss 2106 | -10/Exiles | Found Latent Energy Streamer 2117 | -10/Exiles | Found Flying Fortress v7 2144 | -10/Exiles | Warned to stay clear of 0b10 Research branches 2175 | -10/Exiles | Build established: Hauler-Mutant 2220 | -10/Exiles | Discovered new exit (range 10) 2702 | -10/Exiles | Attacked by the Exiles 2846 | -10/Exiles | Found Prototype Ballistic Gun 2846 | -10/Exiles | Identified 8R-AWN's Boregun 2904 | -10/Exiles | Core integrity fell below 50% 2947 | -10/Exiles | Build established: Mutant 2972 | -10/Exiles | Core integrity fell below 20% 2973 | -10/Exiles | Destroyed by DAS Turret with DAS Cannon Last Messages --------------- 02809_ 8R-AWN Prototype Leg ripped off. 02813_ Thief Drone delivers Prototype Leg. 02813_ Thief Drone retrieved by Thief Drone Bay. 02843_ Dropped AWS/Gauss. 02844_ Acquired Missile Launcher. 02846_ Acquired Prototype Ballistic Gun. 02846_ Identified 8R-AWN's Boregun. 02851_ Acquired 20 matter. 02855_ The unstable cave ceiling collapses. 02887_ VEYLGT3K3HQC5 054 Map ----- +----------------------------------------------------+ | #??????????????????????????????????????#"###??# | | #?????????????????????????????????????????????# | | ??????????????????????????????????????????????# | | #????????????????????????????????????????????## | | #????????????#######?????????????????????????#" | | #######??????#!!! "#?????????????????????????#" | | [ #""##?????# "#?????????????????????????#" | | ####??# "#?????????????????????????#" | | ## #?## ""#????????????##???????????#" | | # ###" ""#???????????? """????????#" | | ##" ""#????????????" """#???????## | | #"" #?????????????"" ?????????# | | "## ##????????????"" ?????????#" | | ###### ###??????????"" "#????????#" | | ?????### ####????????? ""?????????#" | | ####### #????##????" "?????????##" | | !!""""" = ! ##### ##???# #????????##"" | | ! # # # #?### ###?######"" | | ! !"# ## % # ###X# #"###""""""" | | ! !## ## """""" " "" | | !""""""###### [ "" """ " | | #########????## " " | | ??????????????###### | | ???????????????????### | | ?????????????????????## | | ??????????????????????## @ | | ???????????????????????## | | ???????????????????????# """""" | | ???????????????????????# ######" | | ???????????????????????# ""##????## | | ???????????????????????#" """##??????? | | ???????????????????????""" """##???????? | | ???????????????????????""" ""#????????? | | ??????????????????????#"" ########??# | | ???????????????????????"" ## #### | | ???????????????????????"" """ | | ???????????????????????#" t | | ???????????????????????#" | | ????????????????????????# | | ????????????????????????#" " | | ????????????????????????#""" ""## | | ?????????????????????????"" ""#### | | ?????????????????????????" """"##??# | | ?????????????????????????""" """#??## | | ?????????????????????????? ""##??#! | | ?????????????????????????#"" """##???#" | | ??????????????????????????#""" ##????#" | | ???????????????????????????#"""" ##?????#!!" | | ????????????????????????????## #??????#### | | ??????????????????????????????#### ##?????????? | +----------------------------------------------------+ Best States ------------- Heat Dissipation 25 Energy Generation 14 Energy Capacity 250 Matter Stores 300 Matter Capacity 300 Sight Range 16 Terrain Scan Density 10 Armor Coverage 150 Evasion (%) 50 Recoil Reduction 2 Item Schematics ----------------- None Robot Schematics ------------------ None Fabricated ------------ Nothing Alien Tech Used ----------------- None Achievements -------------- None Challenges ------------ None Game ------ Seed PulseReinforcedProcessor Manual? 0 Play Time 00:34:14 Cumulative 278.0 hours Start 2021.02.03 @ 18:23:07 End 2021.02.03 @ 22:26:04 Sessions 3 Manual Loads 0 Difficulty Rogue Special Mode None Game No. 104 Rogue 100 Adventurer 4 Explorer 0 Win Type - Total 4 Types 3/0/1/0/0/0/0/0/0 Lore% 67 Gallery% 76 Achievement% 62 Wizard Run 0 Options --------- ASCII 1 Keyboard 0 Movement Arrows Keybinds 0 Fullscreen 1 Font 18/Terminus Map View 76x50 Tactical HUD 1 Map Filters NONE Filters NONE Steam 1 RUN: 8286ba0e-3e8b-4094-89fb-3c563fa866cb